Cogmind - Beta 15 @@@ ROGUE MODE // 2025.08.06 @ 17:14:04 Player: Zoe Result: Destroyed by G-34 Mercenary with Small Laser Performance ------------- Evolutions (0) 0 Regions Visited (1) 200 Robots Destroyed (27) 135 Value Destroyed (613) 613 Prototype IDs (0) 0 Alien Tech Used (0) 0 Bonus (0) 0 TOTAL SCORE: 948 Bonus ------- None Cogmind --------- Core Integrity 0/250 Matter 153/300 Energy 241/250 System Corruption 3% Temperature Cool (12) Movement Walking (120) Location -10/Materials Parts ------- > --- POWER (1) -------- Ion Engine > --- PROPULSION (2) --- Aluminum Leg Aluminum Leg > --- UTILITY (2) ------ Small Storage Unit ECM Suite > --- WEAPON (2) ------- Small Laser Light Assault Rifle > --- INVENTORY (8) ---- Ion Engine Aluminum Leg Aluminum Leg Aluminum Leg Signal Interpreter Datajack Peak State ------------ > --- POWER ------------ Ion Engine > --- PROPULSION ------- Aluminum Leg Aluminum Leg > --- UTILITY ---------- Small Storage Unit Improved Terrain Scanner > --- WEAPON ----------- Light Assault Rifle Light Assault Rifle > --- INVENTORY -------- Ion Engine Light Treads Light Treads Wheel Compact Wheel EM Pulse Gun [Rating: 9] Favorites ----------- Power Ion Engine Engine Ion Engine Propulsion Aluminum Leg Leg Aluminum Leg Utility Small Storage Unit Device Improved Terrain Scanner Storage Small Storage Unit Weapon Light Assault Rifle Energy Gun EM Pulse Gun Ballistic Gun Light Assault Rifle Launcher Grenade Launcher Build | -11 -10 ------- Run | Yrd Mat Slots Evolved . | . . Power . | . . Propulsion . | . . Utility . | . . Weapon . | . . Parts Attached 26 | 7 19 Power 4 | 1 3 Engine 4 | 1 3 Core . | . . Reactor . | . . Propulsion 11 | 2 9 Treads . | . . Leg 11 | 2 9 Wheel . | . . Hover . | . . Flight . | . . Utility 3 | 2 1 Device 2 | 1 1 Storage 1 | 1 . Processor . | . . Hackware . | . . Protection . | . . Artifact . | . . Weapon 8 | 2 6 Energy Gun 2 | . 2 Energy Cannon . | . . Ballistic Gun 5 | 2 3 Ballistic Cannon . | . . Launcher 1 | . 1 Special Weapon . | . . Impact Weapon . | . . Slashing Weapon . | . . Piercing Weapon . | . . Special Melee Weapon . | . . Unidentified Prototypes . | . . Parts Lost 8 | . 8 Power . | . . Propulsion 2 | . 2 Utility 1 | . 1 Weapon 5 | . 5 Highest Loss Streak 4 | . 4 To Critical Strikes . | . . Average Backups 6 | 4 7 Power . | . 1 Propulsion 3 | 3 3 Utility . | . . Weapon 1 | . 1 Tool/Special . | . . Unused Backups 6 | . 6 Power . | . . Propulsion 4 | . 4 Utility 1 | . 1 Weapon . | . . Tool/Special 1 | . 1 Average Slot Usage (%) 90 | . 90 Engine 14 | . 14 Leg 27 | . 27 Device 9 | . 9 Storage 14 | . 14 Energy Gun 4 | . 4 Ballistic Gun 18 | . 18 Launcher 1 | . 1 Peak Build Rating 9 | 9 9 Average Rating 7 | 6 7 On Entrance 4 | . 9 Naked Turns . | . . Heaviest Build 14 | 13 14 Greatest Support 20 | 20 20 Greatest Overweight (x) 3 | 3 1 Average Overweight (x) . | . . Largest Inventory Capacity 8 | 8 8 Average Capacity 7 | 7 8 Most Carried 8 | 7 8 Average Carried 6 | 4 7 Final Capacity 8 | 8 8 Final Carried 6 | 6 6 Class Distribution -------------------- 76% | Mutant 23% | Scavenger-Mutant Dominant Class ---------------- Mutant | -10/Materials Resources | -11 -10 ----------- Run | Yrd Mat Matter Collected 598 | 285 313 Remotely . | . . Salvage Created 718 | 84 634 Parts 60 | 6 54 Haulers Intercepted . | . . Recyclers Shooed 4 | . 4 Parts Field Recycled . | . . Retrieved Matter . | . . Parts Self-Destructed . | . . Prevented . | . . Kills | -11 -10 ------- Run | Yrd Mat Combat Hostiles Destroyed 20 | . 20 Guns 14 | . 14 AOE 6 | . 6 Classes Destroyed 6 | 2 4 Worker 2 | 1 1 Builder 1 | . 1 Tunneler 3 | 3 . Watcher 1 | . 1 Swarmer 6 | . 6 Grunt 14 | . 14 Best Kill Streak 7 | 2 7 Combat Bots Only 7 | . 7 Max Kills in Single Turn 2 | 1 2 Gunslinging . | . . Exploded 2 | . 2 Melee . | . . Uniques/NPCs Destroyed . | . . Combat | -11 -10 -------- Run | Yrd Mat Hostile Shots Fired 98 | . 98 Missed 27 | . 27 Hits 71 | . 71 Projectile 71 | . 71 Damage Taken 1287 | . 1287 Core 260 | . 260 Absorbed by Shields . | . . Core Remaining (%) 100 | 100 . Volleys Fired 113 | 24 89 Largest 2 | 2 2 Hottest 60 | 40 60 Shots Fired 195 | 48 147 Gun 183 | 48 135 Cannon . | . . Launcher 12 | . 12 Special . | . . Kinetic 172 | 48 124 Thermal 2 | . 2 Explosive 12 | . 12 Electromagnetic 9 | . 9 Robot Hit Streak 18 | 6 18 Robot Miss Streak 4 | 3 4 Penetration Max . | . . Secondary Targets 1 | . 1 Max Gunslinging Chain 1 | . 1 Shots Hit Robots 125 | 29 96 Core Hits 51 | 9 42 Critical Kills 1 | . 1 Critical Parts Destroyed . | . . Critical Strikes 1 | . 1 Destroy 1 | . 1 Melee Attacks . | . . Impact . | . . Slashing . | . . Piercing . | . . Sneak Attacks . | . . Combat Hostiles . | . . Follow-up Attacks . | . . Damage Inflicted 1892 | 229 1663 Guns 1016 | 229 787 Cannons . | . . Explosions 876 | . 876 Melee . | . . Ramming . | . . Kinetic 907 | 229 678 Thermal 90 | . 90 Explosive 811 | . 811 Electromagnetic 84 | . 84 Impact . | . . Slashing . | . . Piercing . | . . Highest Corruption 3 | . 3 Average Corruption 2 | . 2 Corruption Purged . | . . Corruption Blocked . | . . Effects 4 | . 4 Matter Fused 1 | . 1 Heat Flow Errors 1 | . 1 Energy Discharges 1 | . 1 Data Loss (minor) 1 | . 1 Overload Shots . | . . Overflow Damage 124 | . 124 Projectiles . | . . Explosions 124 | . 124 Melee . | . . Knockbacks . | . . Impact . | . . Kinetic . | . . Secondary . | . . Self-Inflicted Damage 324 | . 324 Shots 9 | . 9 Rammed . | . . Targets Rammed 1 | . 1 Kicked 1 | . 1 Crushed . | . . Highest Temperature 214 | . 214 Average Temperature 29 | . 29 Received Heat Transfer 324 | . 324 Siege Activations . | . . Martial Activations . | . . Shielding Activations . | . . Robots Disrupted . | . . Combat Hostiles . | . . Robots Corrupted . | . . Combat Hostiles . | . . Parts Fried . | . . Impact Corruptions . | . . Robots Melted . | . . Combat Hostiles . | . . Parts Melted . | . . Heat Transferred 150 | . 150 Parts Sabotaged . | . . Parts Stolen . | . . Parts Stripped . | . . Power Chain Reactions 2 | . 2 Alert | -11 -10 ------- Run | Yrd Mat Maximum Alert Level 1 | . 1 Low Security (%) 80 | 100 74 Level 1 19 | . 25 Level 2 . | . . Level 3 . | . . Level 4 . | . . Level 5 . | . . High Security . | . . Max Security . | . . Peak Influence 272 | 5 272 Initial . | . . Average 107 | . 137 Influence Increases 647 | 20 627 Destroy 0b10 Robot/C 400 | . 400 Destroy 0b10 Robot/NC 35 | 20 15 Destroy Leader 72 | . 72 Successful Hack 14 | . 14 Disable Machine 30 | . 30 Destroy Structure 81 | . 81 Lose Combat Pursuer 15 | . 15 Influence Decreases 582 | 20 562 Time Decay 352 | 20 332 Lost Part 80 | . 80 Purge Threat 150 | . 150 Squads Dispatched 5 | . 5 Investigation 5 | . 5 Extermination . | . . Reinforcement . | . . Assault . | . . Garrison . | . . Intercept . | . . Searches Triggered . | . . Construction Impeded . | . . Haulers Reinforced . | . . Active Scanning Responses . | . . Cargo Convoy Interrupts . | . . Stealth | -11 -10 --------- Run | Yrd Mat Distress Signals 2 | . 2 Communications Jammed . | . . Distress Signals . | . . Times Spotted 32 | . 32 Peak Tracking Total 4 | . 4 Tactical Retreats 1 | . 1 Traps | -11 -10 ------- Run | Yrd Mat Traps Triggered 2 | . 2 Indirectly . | . . Trap Hack Attempts . | . . Triggered . | . . Disarmed . | . . Reprogrammed . | . . Reused . | . . Traps Extracted . | . . Installed . | . . Triggered . | . . Machines | -11 -10 ---------- Run | Yrd Mat Machines Disabled 2 | . 2 Max in Single Turn 1 | . 1 Machines Repaired . | . . Machines Dismantled . | . . Machines Sabotaged . | . . Overloaded Fab Kills . | . . Hacking | -11 -10 --------- Run | Yrd Mat Machines Accessed 6 | . 6 Terminals 6 | . 6 Fabricators . | . . Repair Stations . | . . Recycling Units . | . . Scanalyzers . | . . Garrison Access . | . . Total Hacks 20 | . 20 Successful 12 | . 12 Failed 8 | . 8 Catastrophic . | . . Database Lockouts . | . . Manual 21 | . 21 Terminals 20 | . 20 Fabricators . | . . Repair Stations . | . . Recycling Units . | . . Scanalyzers . | . . Garrison Access . | . . Terminal Hacks 2 | . 2 Robot Analysis 1 | . 1 Unreport Threat 1 | . 1 Fabricator Hacks . | . . Repair Station Hacks . | . . Recycling Unit Hacks . | . . Scanalyzer . | . . Garrison Access Hacks . | . . Unauthorized Hacks 10 | . 10 Terminals 10 | . 10 Track 4 | . 4 Botnet 6 | . 6 Fabricators . | . . Repair Stations . | . . Recycling Units . | . . Scanalyzers . | . . Garrison Access . | . . Data Cores Recovered . | . . Used . | . . Hacking Detections 5 | . 5 Full Trace Events 4 | . 4 Feedback Events 1 | . 1 Corruption 1 | . 1 Feedback Blocked . | . . Robot Schematics Acquired . | . . Robots Built . | . . Authchips . | . . Time . | . . Total Robot Build Rating . | . . Part Schematics Acquired . | . . Parts Built . | . . Authchips . | . . Time . | . . Total Part Build Rating . | . . Parts Repaired . | . . Time . | . . Parts Recycled . | . . Recycled Matter . | . . Retrieved Matter . | . . Retrieved Components . | . . Parts Scanalyzed . | . . Part Schematics Acquired . | . . Parts Damaged . | . . Bothacking | -11 -10 ------------ Run | Yrd Mat Used RIF Installer . | . . Robots Hacked . | . . Non-combat . | . . Combat . | . . Robot Hacks Applied . | . . Relay Couplers Released . | . . Fabnet Peak Effective % . | . . Robots Rewired . | . . Allies Hacked . | . . Hacks Repelled . | . . Allies | -11 -10 -------- Run | Yrd Mat Total Allies . | . . Largest Group . | . . Highest-Rated Group . | . . Highest-Rated Ally . | . . Total Orders . | . . Ally Attacks . | . . Total Damage . | . . Kills . | . . Allies Corrupted . | . . Allies Melted . | . . Intel | -11 -10 ------- Run | Yrd Mat Active Infowar (turns) 610 | 42 568 Terrain 593 | 42 551 ECM 17 | . 17 Robot Analysis Total 1 | . 1 Derelict Logs Recovered . | . . Drone Launches . | . . Drone Recoveries . | . . Exploration | -11 -10 ------------- Run | Yrd Mat Turns Passed 1063 | 231 832 Spaces Moved 551 | 119 432 Core 12 | 12 . Treads . | . . Legs 539 | 107 432 Wheels . | . . Hover . | . . Flight . | . . Fastest Speed 50 | 50 120 Average Speed 125 | 125 125 Slowest Speed 200 | 200 190 Overloaded Moves . | . . Propulsion Burnouts . | . . Robots Hopped . | . . Potential Cave-ins . | . . Cave-ins Triggered 1 | . 1 Exploration Rate (%) 34 | 7 61 Regions Visited 1 Branch Regions . Pre-discovered Areas . | . . Known Exits Taken . | . . Unknown Exits Taken 1 | 1 . Scrap Searched . | . . Spaces Dug . | . . Terrain Destroyed 92 | . 92 Melee . | . . Projectile . | . . AOE 92 | . 92 Terrain Rammed . | . . Walls Destroyed . | . . Machines Disabled . | . . Actions | -11 -10 --------- Run | Yrd Mat Total 766 | 162 604 Wait 36 | . 36 Move 550 | 118 432 Hop . | . . Pick Up 26 | 13 13 Fast Attach . | . . Attach 15 | 7 8 Detach . | . . Swap 13 | . 13 Drop 12 | . 12 Fire 113 | 24 89 Melee . | . . Ram . | . . Kick 1 | . 1 Crush . | . . Escape Stasis . | . . Rewire . | . . Trap . | . . Miscellaneous . | . . Route ------- -11/Scrapyard -10/Materials (discovered 3 exits: [*Mat x2] / [*Min]) History --------- Turn | Location | Event 31 | -11/Scrapyard | Discovered new exit (range 14) 232 | -11/Scrapyard | Entered Materials 309 | -10/Materials | Build established: Mutant 557 | -10/Materials | Destroyed 7 combat bots 685 | -10/Materials | Discovered new exit (range 3) 764 | -10/Materials | Core integrity fell below 50% 814 | -10/Materials | Lost 4 parts (1n1u2w) 847 | -10/Materials | Discovered new exit (range 13) 876 | -10/Materials | Core integrity fell below 20% 894 | -10/Materials | Crushed by falling debris 973 | -10/Materials | Discovered new exit (range 8) 1064 | -10/Materials | Destroyed by G-34 Mercenary with Small Laser Last Messages --------------- Acquired 8 matter. System corrupted: Energy discharge (-90). Acquired 7 matter. Connecting with Terminal... >>Trojan(Botnet) Trojan loaded successfully. Testing... Terminal linked with 5 systems. Awaiting botnet instructions. >>Trojan(Track) Trojan loaded successfully. Testing... Tracking enabled and active. >>Alert(Purge) Purged threat record, alert level lowered. Feedback: System corruption (+1%). ALERT: Suspicious activity at Terminal M003. Dispatching Investigation squad. System corrupted: Component data lost. Acquired ECM Suite. Map ----- +----------------------------------------------------+ | ?# #???????#????#??????# "" # """ #??# | | #####+################# # / # #??# | | ^ # # # #??# | | " + """ # ##########??## | | ^^ # """ # #????????????# | | #####+###### ######?## # """ # #????????????# | | ?# #?## #????????# ## # ###########??# | | ## #??# #? ?????# ## # ## */ #??# | | ?# #??# #????????# ## = # ## /[ #??# | | ?# #### ##???????+ ######## ## /[ #??# | | ?# #??# #????"???# #?## # # #??# | | ## #### #? ?????# ### ### # ! #??# | | ?########### #????#???# #### # #??# | | #?# # #?######## # # # #??# | | #?# "" """# #?#!!! # # # + #??? | | ### "T """# ###!!! # # # # #??? | | ## "" """#% #?#!!! + + # ###/######### | | !## """# #?# # # # ^ | | *## ! # #?# # < # + ### | | [#######+### ### # # ! = # #?? | | %+% #?##+#################/####### #?? | | *# %k ##?# ###??# """ ### #?? | | %# k### #??# #?#??# "T" # """## #? | | %# t T## #??# #???## # ""# # | | ## "T" ### ####t###### """ # """# # | | #?# #@ """ # # < # | | #?# g """ # """# # | | ######+##############w#+# # """#"" ""# | | # ## # !!/ # """##"!!!"## | | # """ """ """ ## "" # !/ # ! ?##"""##? | | # """ """ """ ## T" # !/ ##########?#####?? | | # """ """ """ ## "" # #????????????????? | | # ## #########?????#??????????? | | # ## ##????#??#???????????????? | | #########################?#??#???????????????????? | | | | | | | | | | | | | | | | | | | | | | | | | | | | | | | +----------------------------------------------------+ Best States ------------- Heat Dissipation 25 Energy Generation 10 Energy Capacity 250 Matter Stores 300 Matter Capacity 300 Sight Range 16 Terrain Scan Range 16 Terrain Scan Density 10 ECM Strength 1 Evasion (%) 55 Item Schematics ----------------- None Robot Schematics ------------------ None Fabricated ------------ Nothing Repaired ---------- Nothing Alien Tech Used ----------------- None Achievements -------------- None Challenges ------------ None Game ------ Seed BiometalTacticalTether Manual? 0 Play Time 00:13:44 Cumulative 23.6 hours Start 2025.08.06 @ 16:51:19 End 2025.08.06 @ 17:14:04 Sessions 1 Manual Loads 0 Difficulty Rogue Special Mode None Game No. 47 Rogue 44 Adventurer 3 Explorer 0 Win Type - Total 0 Types 0/0/0/0/0/0/0/0/0/0 Lore% 15 Gallery% 19 Achievement% 21 Wizard Run 0 Options --------- Layout 1 ASCII 0 Keyboard 0 Movement Mouse Keybinds 0 Fullscreen 1 Font 24/Smallcaps Map View 50x35 Zoom Use 0% Tactical HUD 0 Map Filters NONE Filters NONE Steam 1 RUN: 03da5a6d-e9a7-4042-9f51-5703c56e9bba